[Event "January 2 Early 2024"]
[Site "https://www.chess.com"]
[Date "2024.01.02"]
[Round "10"]
[White "Moskalenko, Alexander"]
[Black "Salem, A.R. Saleh"]
[Result "0-1"]
[Board "16"]
[TimeControl "180+1"]
[WhiteFideId "4155351"]
[BlackFideId "9301348"]
[WhiteElo "2839"]
[BlackElo "2982"]
[WhiteTeam "RUS"]
[BlackTeam "UAE"]
[WhiteClock "0:00:00"]
[BlackClock "0:00:04"]

1. e4 {[%clk 0:02:51]}  e5 {[%clk 0:03:00]} 2. Nf3 {[%clk 0:02:51]}  Nc6 {[%clk 0:03:00]} 3. Bc4 {[%clk 0:02:52]}  Nf6 {[%clk 0:03:01]} 4. d3 {[%clk 0:02:52]}  Bc5 {[%clk 0:03:01]} 5. Nc3 {[%clk 0:02:51]}  a6 {[%clk 0:03:01]} 6. a3 {[%clk 0:02:50]}  d6 {[%clk 0:03:01]} 7. Be3 {[%clk 0:02:46]}  Bxe3 {[%clk 0:03:00]} 8. fxe3 {[%clk 0:02:47]}  Be6 {[%clk 0:03:01]} 9. Nd2 {[%clk 0:02:47]}  O-O {[%clk 0:02:59]} 10. O-O {[%clk 0:02:47]}  Ne7 {[%clk 0:02:56]} 11. Qe2 {[%clk 0:02:41]}  Ng6 {[%clk 0:02:54]} 12. a4 {[%clk 0:02:30]}  a5 {[%clk 0:02:46]} 13. h3 {[%clk 0:02:27]}  Bd7 {[%clk 0:02:45]} 14. Rf2 {[%clk 0:02:22]}  c6 {[%clk 0:02:39]} 15. Raf1 {[%clk 0:02:20]}  Be6 {[%clk 0:02:27]} 16. Kh2 {[%clk 0:02:05]}  d5 {[%clk 0:02:26]} 17. Bb3 {[%clk 0:01:57]}  h6 {[%clk 0:02:23]} 18. Rxf6 {[%clk 0:01:51]}  gxf6 {[%clk 0:02:23]} 19. exd5 {[%clk 0:01:51]}  cxd5 {[%clk 0:02:23]} 20. Qh5 {[%clk 0:01:52]}  Kg7 {[%clk 0:02:22]} 21. e4 {[%clk 0:01:46]}  dxe4 {[%clk 0:02:08]} 22. Ncxe4 {[%clk 0:01:38]}  f5 {[%clk 0:02:05]} 23. Ng3 {[%clk 0:01:25]}  f4 {[%clk 0:01:55]} 24. Nf5+ {[%clk 0:01:20]}  Bxf5 {[%clk 0:01:55]} 25. Qxf5 {[%clk 0:01:19]}  Qg5 {[%clk 0:01:53]} 26. Qd7 {[%clk 0:01:18]}  Qe7 {[%clk 0:01:23]} 27. Qf5 {[%clk 0:01:12]}  Nh4 {[%clk 0:01:08]} 28. Qg4+ {[%clk 0:01:00]}  Qg5 {[%clk 0:01:09]} 29. Qe2 {[%clk 0:01:01]}  Rae8 {[%clk 0:01:10]} 30. Ne4 {[%clk 0:00:44]}  Qg6 {[%clk 0:01:09]} 31. g3 {[%clk 0:00:39]}  fxg3+ {[%clk 0:01:01]} 32. Nxg3 {[%clk 0:00:40]}  Kh8 {[%clk 0:00:54]} 33. Bd5 {[%clk 0:00:35]}  f5 {[%clk 0:00:53]} 34. Rg1 {[%clk 0:00:35]}  e4 {[%clk 0:00:49]} 35. Nxe4 {[%clk 0:00:30]}  Qd6+ {[%clk 0:00:37]} 36. Nxd6 {[%clk 0:00:24]}  Rxe2+ {[%clk 0:00:38]} 37. Kg3 {[%clk 0:00:25]}  Ng6 {[%clk 0:00:38]} 38. Kf3 {[%clk 0:00:21]}  Re5 {[%clk 0:00:17]} 39. Nf7+ {[%clk 0:00:21]}  Rxf7 {[%clk 0:00:14]} 40. Bxf7 {[%clk 0:00:22]}  Ne7 {[%clk 0:00:15]} 41. d4 {[%clk 0:00:18]}  Re4 {[%clk 0:00:13]} 42. c3 {[%clk 0:00:18]}  Kh7 {[%clk 0:00:12]} 43. Bc4 {[%clk 0:00:18]}  Rh4 {[%clk 0:00:11]} 44. Kg3 {[%clk 0:00:18]}  Re4 {[%clk 0:00:10]} 45. Kf3 {[%clk 0:00:17]}  Rh4 {[%clk 0:00:10]} 46. Rh1 {[%clk 0:00:17]}  Kg7 {[%clk 0:00:09]} 47. Re1 {[%clk 0:00:11]}  Ng6 {[%clk 0:00:07]} 48. Kg3 {[%clk 0:00:10]}  Rh5 {[%clk 0:00:06]} 49. Re6 {[%clk 0:00:08]}  Rg5+ {[%clk 0:00:07]} 50. Kf2 {[%clk 0:00:06]}  Nf4 {[%clk 0:00:06]} 51. Rb6 {[%clk 0:00:06]}  Nxh3+ {[%clk 0:00:05]} 52. Kf3 {[%clk 0:00:06]}  Ng1+ {[%clk 0:00:06]} 53. Kf4 {[%clk 0:00:06]}  Nh3+ {[%clk 0:00:06]} 54. Kf3 {[%clk 0:00:06]}  Ng1+ {[%clk 0:00:07]} 55. Ke3 {[%clk 0:00:05]}  h5 {[%clk 0:00:02]} 56. Rxb7+ {[%clk 0:00:01]}  Kg6 {[%clk 0:00:03]} 57. Rb6+ {[%clk 0:00:02]}  Kg7 {[%clk 0:00:04]} 58. Kf4 {[%clk 0:00:01]}  Nh3+ {[%clk 0:00:04]} 59. Kf3 {[%clk 0:00:00]}  h4 {[%clk 0:00:04]} 0-1

[Event "January 2 Early 2024"]
[Site "https://www.chess.com"]
[Date "2024.01.02"]
[Round "10"]
[White "Molina, Roberto Junio Brito"]
[Black "Baskakov, Egor"]
[Result "0-1"]
[Board "19"]
[TimeControl "180+1"]
[WhiteFideId "2109450"]
[BlackFideId "24197866"]
[WhiteElo "2807"]
[BlackElo "2935"]
[WhiteTeam "BRA"]
[BlackTeam "RUS"]
[WhiteClock "0:00:45"]
[BlackClock "0:02:37"]

1. d4 {[%clk 0:03:00]}  Nf6 {[%clk 0:02:59]} 2. Nf3 {[%clk 0:03:00]}  e6 {[%clk 0:02:59]} 3. g3 {[%clk 0:03:01]}  d5 {[%clk 0:03:00]} 4. Bg2 {[%clk 0:03:01]}  Be7 {[%clk 0:03:01]} 5. O-O {[%clk 0:03:01]}  O-O {[%clk 0:03:01]} 6. c4 {[%clk 0:03:01]}  Ne4 {[%clk 0:03:02]} 7. b3 {[%clk 0:03:00]}  c6 {[%clk 0:03:00]} 8. Ba3 {[%clk 0:02:59]}  f5 {[%clk 0:03:00]} 9. Qc1 {[%clk 0:02:58]}  Bd7 {[%clk 0:03:00]} 10. Bxe7 {[%clk 0:02:57]}  Qxe7 {[%clk 0:03:01]} 11. Qa3 {[%clk 0:02:57]}  Qf6 {[%clk 0:03:01]} 12. Ne5 {[%clk 0:02:55]}  Be8 {[%clk 0:03:01]} 13. e3 {[%clk 0:02:52]}  Nd7 {[%clk 0:03:00]} 14. Nxd7 {[%clk 0:02:51]}  Bxd7 {[%clk 0:03:01]} 15. Qb2 {[%clk 0:02:49]}  g5 {[%clk 0:02:57]} 16. Nc3 {[%clk 0:02:48]}  Be8 {[%clk 0:02:56]} 17. Ne2 {[%clk 0:02:43]}  Bh5 {[%clk 0:02:55]} 18. f3 {[%clk 0:02:43]}  Nd6 {[%clk 0:02:54]} 19. c5 {[%clk 0:02:42]}  Nf7 {[%clk 0:02:54]} 20. Rae1 {[%clk 0:02:40]}  Rae8 {[%clk 0:02:47]} 21. Qd2 {[%clk 0:02:39]}  e5 {[%clk 0:02:45]} 22. dxe5 {[%clk 0:02:25]}  Nxe5 {[%clk 0:02:46]} 23. Nd4 {[%clk 0:02:24]}  f4 {[%clk 0:02:41]} 24. e4 {[%clk 0:02:08]}  dxe4 {[%clk 0:02:38]} 25. Rxe4 {[%clk 0:02:07]}  Bg6 {[%clk 0:02:38]} 26. Re2 {[%clk 0:01:56]}  Rd8 {[%clk 0:02:38]} 27. gxf4 {[%clk 0:01:44]}  Rxd4 {[%clk 0:02:37]} 28. fxe5 {[%clk 0:00:45]}  Rxd2 {[%clk 0:02:37]} 0-1

[Event "January 2 Early 2024"]
[Site "https://www.chess.com"]
[Date "2024.01.02"]
[Round "10"]
[White "Martinez Alcantara, Jose Eduardo"]
[Black "Anuj Shrivatri"]
[Result "1-0"]
[Board "22"]
[TimeControl "180+1"]
[WhiteFideId "3805662"]
[BlackFideId "35070924"]
[WhiteElo "3042"]
[BlackElo "2776"]
[WhiteTeam "PER"]
[BlackTeam "IND"]
[WhiteClock "0:00:31"]
[BlackClock "0:00:00"]

1. a4 {[%clk 0:03:00]}  a5 {[%clk 0:02:53]} 2. Ra3 {[%clk 0:02:54]}  Nc6 {[%clk 0:02:51]} 3. h4 {[%clk 0:02:54]}  h5 {[%clk 0:02:49]} 4. b3 {[%clk 0:02:54]}  e5 {[%clk 0:02:49]} 5. Ra1 {[%clk 0:02:54]}  d5 {[%clk 0:02:49]} 6. e3 {[%clk 0:02:54]}  Nf6 {[%clk 0:02:49]} 7. Bb2 {[%clk 0:02:55]}  Bg4 {[%clk 0:02:46]} 8. Be2 {[%clk 0:02:55]}  Bb4 {[%clk 0:02:40]} 9. Na3 {[%clk 0:02:55]}  Qd7 {[%clk 0:02:33]} 10. Nb5 {[%clk 0:02:55]}  d4 {[%clk 0:02:33]} 11. c3 {[%clk 0:02:54]}  Bc5 {[%clk 0:02:26]} 12. cxd4 {[%clk 0:02:54]}  exd4 {[%clk 0:02:26]} 13. Rc1 {[%clk 0:02:54]}  Bb6 {[%clk 0:02:26]} 14. Nf3 {[%clk 0:02:55]}  d3 {[%clk 0:02:26]} 15. Bf1 {[%clk 0:02:53]}  O-O {[%clk 0:02:21]} 16. Bxf6 {[%clk 0:02:50]}  gxf6 {[%clk 0:02:21]} 17. Rc3 {[%clk 0:02:50]}  Nb4 {[%clk 0:02:20]} 18. Qb1 {[%clk 0:02:47]}  Rad8 {[%clk 0:02:17]} 19. Na3 {[%clk 0:02:34]}  c6 {[%clk 0:01:54]} 20. Nc4 {[%clk 0:02:31]}  Bc7 {[%clk 0:01:55]} 21. Nb2 {[%clk 0:02:32]}  Bxf3 {[%clk 0:01:52]} 22. gxf3 {[%clk 0:02:32]}  Be5 {[%clk 0:01:53]} 23. Rxd3 {[%clk 0:02:31]}  Nxd3+ {[%clk 0:01:51]} 24. Nxd3 {[%clk 0:02:32]}  Kh8 {[%clk 0:01:49]} 25. Qc2 {[%clk 0:02:32]}  Qd6 {[%clk 0:01:47]} 26. f4 {[%clk 0:02:32]}  Ba1 {[%clk 0:01:46]} 27. Be2 {[%clk 0:02:29]}  Rg8 {[%clk 0:01:43]} 28. f3 {[%clk 0:02:18]}  Rg2 {[%clk 0:01:37]} 29. Kf1 {[%clk 0:02:08]}  Rdg8 {[%clk 0:01:32]} 30. Ne1 {[%clk 0:02:08]}  R2g3 {[%clk 0:01:24]} 31. Bc4 {[%clk 0:02:07]}  R8g7 {[%clk 0:01:05]} 32. d4 {[%clk 0:01:20]}  Qb4 {[%clk 0:00:49]} 33. Nd3 {[%clk 0:00:50]}  Qc3 {[%clk 0:00:45]} 34. Qxc3 {[%clk 0:00:47]}  Bxc3 {[%clk 0:00:46]} 35. Ke2 {[%clk 0:00:41]}  Rg2+ {[%clk 0:00:46]} 36. Nf2 {[%clk 0:00:41]}  Kg8 {[%clk 0:00:35]} 37. d5 {[%clk 0:00:41]}  cxd5 {[%clk 0:00:32]} 38. Bxd5 {[%clk 0:00:42]}  b6 {[%clk 0:00:33]} 39. Rc1 {[%clk 0:00:42]}  Bb4 {[%clk 0:00:32]} 40. Rc8+ {[%clk 0:00:40]}  Bf8 {[%clk 0:00:30]} 41. f5 {[%clk 0:00:41]}  Rh2 {[%clk 0:00:30]} 42. f4 {[%clk 0:00:42]}  Rg1 {[%clk 0:00:28]} 43. Rc7 {[%clk 0:00:40]}  Bb4 {[%clk 0:00:24]} 44. Rxf7 {[%clk 0:00:35]}  Re1+ {[%clk 0:00:24]} 45. Kf3 {[%clk 0:00:34]}  Rf1 {[%clk 0:00:21]} 46. Rxf6+ {[%clk 0:00:35]}  Kg7 {[%clk 0:00:18]} 47. Rg6+ {[%clk 0:00:35]}  Kf8 {[%clk 0:00:19]} 48. Rg2 {[%clk 0:00:35]}  Rxg2 {[%clk 0:00:06]} 49. Kxg2 {[%clk 0:00:36]}  Re1 {[%clk 0:00:06]} 50. e4 {[%clk 0:00:32]}  Bd2 {[%clk 0:00:06]} 51. Nd3 {[%clk 0:00:31]}  Re3 {[%clk 0:00:07]} 52. Ne5 {[%clk 0:00:30]}  Re2+ {[%clk 0:00:06]} 53. Kf3 {[%clk 0:00:31]}  Re3+ {[%clk 0:00:06]} 54. Kf2 {[%clk 0:00:31]}  Rh3 {[%clk 0:00:07]} 55. f6 {[%clk 0:00:31]}  Bc3 {[%clk 0:00:00]} 56. Ng6+ {[%clk 0:00:31]} 1-0

[Event "January 2 Early 2024"]
[Site "https://www.chess.com"]
[Date "2024.01.02"]
[Round "10"]
[White "Piesik, Piotr"]
[Black "Galchenko, Matvey"]
[Result "0-1"]
[Board "29"]
[TimeControl "180+1"]
[WhiteFideId "1136194"]
[BlackFideId "24175480"]
[WhiteElo "2679"]
[BlackElo "2894"]
[WhiteTeam "CZE"]
[BlackTeam "FID"]
[WhiteClock "0:00:42"]
[BlackClock "0:01:10"]

1. Nf3 {[%clk 0:02:52]}  c5 {[%clk 0:02:57]} 2. e4 {[%clk 0:02:52]}  g6 {[%clk 0:02:57]} 3. c3 {[%clk 0:02:52]}  Bg7 {[%clk 0:02:57]} 4. d4 {[%clk 0:02:52]}  cxd4 {[%clk 0:02:58]} 5. cxd4 {[%clk 0:02:53]}  d5 {[%clk 0:02:59]} 6. e5 {[%clk 0:02:53]}  a6 {[%clk 0:02:59]} 7. h3 {[%clk 0:02:53]}  Nc6 {[%clk 0:02:57]} 8. Nc3 {[%clk 0:02:52]}  f6 {[%clk 0:02:57]} 9. exf6 {[%clk 0:02:51]}  Nxf6 {[%clk 0:02:58]} 10. Bd3 {[%clk 0:02:50]}  O-O {[%clk 0:02:56]} 11. O-O {[%clk 0:02:51]}  Nh5 {[%clk 0:02:54]} 12. Qb3 {[%clk 0:02:22]}  Rxf3 {[%clk 0:02:04]} 13. gxf3 {[%clk 0:02:20]}  e6 {[%clk 0:02:05]} 14. Ne2 {[%clk 0:02:14]}  Qh4 {[%clk 0:02:02]} 15. Be3 {[%clk 0:02:01]}  Qxh3 {[%clk 0:02:00]} 16. Rfc1 {[%clk 0:01:51]}  Qxf3 {[%clk 0:01:58]} 17. Qb6 {[%clk 0:01:43]}  e5 {[%clk 0:01:51]} 18. Rxc6 {[%clk 0:01:38]}  Bh3 {[%clk 0:01:51]} 19. Rxg6 {[%clk 0:01:37]}  hxg6 {[%clk 0:01:42]} 20. Qxg6 {[%clk 0:01:38]}  e4 {[%clk 0:01:40]} 21. Kh2 {[%clk 0:01:01]}  exd3 {[%clk 0:01:33]} 22. Ng1 {[%clk 0:01:01]}  Qf5 {[%clk 0:01:21]} 23. Qd6 {[%clk 0:00:54]}  Bg4 {[%clk 0:01:14]} 24. Rc1 {[%clk 0:00:42]}  d2 {[%clk 0:01:10]} 0-1

[Event "January 2 Early 2024"]
[Site "https://www.chess.com"]
[Date "2024.01.02"]
[Round "10"]
[White "Tregubov, Pavel V."]
[Black "Durarbayli, Vasif"]
[Result "1-0"]
[Board "33"]
[TimeControl "180+1"]
[WhiteFideId "4115341"]
[BlackFideId "13402935"]
[WhiteElo "2656"]
[BlackElo "2847"]
[WhiteTeam "FRA"]
[BlackTeam "AZE"]
[WhiteClock "0:00:43"]
[BlackClock "0:00:28"]

1. e4 {[%clk 0:03:00]}  e6 {[%clk 0:02:59]} 2. d4 {[%clk 0:03:00]}  d5 {[%clk 0:02:59]} 3. exd5 {[%clk 0:03:00]}  exd5 {[%clk 0:02:59]} 4. Nf3 {[%clk 0:03:01]}  Bd6 {[%clk 0:02:57]} 5. Bd3 {[%clk 0:03:00]}  Ne7 {[%clk 0:02:55]} 6. O-O {[%clk 0:03:00]}  Bg4 {[%clk 0:02:55]} 7. h3 {[%clk 0:02:59]}  Bh5 {[%clk 0:02:55]} 8. Re1 {[%clk 0:02:50]}  Nc6 {[%clk 0:02:52]} 9. c3 {[%clk 0:02:49]}  Qd7 {[%clk 0:02:52]} 10. Nbd2 {[%clk 0:02:42]}  h6 {[%clk 0:02:51]} 11. b4 {[%clk 0:02:39]}  Nd8 {[%clk 0:02:51]} 12. Nf1 {[%clk 0:02:35]}  Ne6 {[%clk 0:02:49]} 13. Ng3 {[%clk 0:02:34]}  Bxf3 {[%clk 0:02:21]} 14. Qxf3 {[%clk 0:02:33]}  O-O {[%clk 0:02:12]} 15. Nf5 {[%clk 0:02:27]}  Ng6 {[%clk 0:01:49]} 16. g3 {[%clk 0:02:10]}  Be7 {[%clk 0:01:43]} 17. h4 {[%clk 0:02:08]}  Bf6 {[%clk 0:01:30]} 18. Nxh6+ {[%clk 0:02:04]}  Kh8 {[%clk 0:01:17]} 19. Ng4 {[%clk 0:02:02]}  Bxh4 {[%clk 0:01:13]} 20. gxh4 {[%clk 0:01:59]}  Nxh4 {[%clk 0:01:14]} 21. Qh3 {[%clk 0:01:57]}  Qd8 {[%clk 0:01:08]} 22. Ne5 {[%clk 0:01:54]}  Kg8 {[%clk 0:01:07]} 23. Re3 {[%clk 0:01:27]}  a5 {[%clk 0:01:01]} 24. b5 {[%clk 0:01:20]}  c5 {[%clk 0:01:01]} 25. Rg3 {[%clk 0:01:13]}  f5 {[%clk 0:00:51]} 26. Ng6 {[%clk 0:00:51]}  Nxg6 {[%clk 0:00:42]} 27. Rxg6 {[%clk 0:00:51]}  Qe8 {[%clk 0:00:37]} 28. Bxf5 {[%clk 0:00:47]}  Nxd4 {[%clk 0:00:28]} 29. cxd4 {[%clk 0:00:43]} 1-0

[Event "January 2 Early 2024"]
[Site "https://www.chess.com"]
[Date "2024.01.02"]
[Round "10"]
[White "Finek, Vaclav"]
[Black "Aswath, S"]
[Result "0-1"]
[Board "34"]
[TimeControl "180+1"]
[WhiteFideId "23718293"]
[BlackFideId "46694919"]
[WhiteElo "2840"]
[BlackElo "2622"]
[WhiteTeam "CZE"]
[BlackTeam "IND"]
[WhiteClock "0:00:02"]
[BlackClock "0:00:16"]

1. d4 {[%clk 0:03:00]}  d5 {[%clk 0:02:59]} 2. Nf3 {[%clk 0:03:01]}  Nf6 {[%clk 0:02:59]} 3. c4 {[%clk 0:03:01]}  c6 {[%clk 0:02:57]} 4. Qc2 {[%clk 0:03:00]}  e6 {[%clk 0:02:54]} 5. Bg5 {[%clk 0:02:46]}  Nbd7 {[%clk 0:02:42]} 6. Nbd2 {[%clk 0:02:45]}  Be7 {[%clk 0:02:38]} 7. g3 {[%clk 0:02:37]}  O-O {[%clk 0:02:38]} 8. Bg2 {[%clk 0:02:35]}  dxc4 {[%clk 0:02:33]} 9. Nxc4 {[%clk 0:02:31]}  c5 {[%clk 0:02:33]} 10. O-O {[%clk 0:02:26]}  h6 {[%clk 0:02:32]} 11. Bxf6 {[%clk 0:02:14]}  Nxf6 {[%clk 0:02:32]} 12. Rfd1 {[%clk 0:02:14]}  Qc7 {[%clk 0:02:31]} 13. Rac1 {[%clk 0:02:11]}  cxd4 {[%clk 0:02:29]} 14. Nxd4 {[%clk 0:02:09]}  a6 {[%clk 0:02:29]} 15. Nb3 {[%clk 0:02:00]}  Rb8 {[%clk 0:02:25]} 16. Nca5 {[%clk 0:01:58]}  Qxc2 {[%clk 0:02:13]} 17. Rxc2 {[%clk 0:01:56]}  Bd8 {[%clk 0:02:12]} 18. Rcd2 {[%clk 0:01:51]}  Bb6 {[%clk 0:02:11]} 19. Nc4 {[%clk 0:01:49]}  Bc7 {[%clk 0:02:10]} 20. Nd6 {[%clk 0:01:48]}  Rd8 {[%clk 0:02:08]} 21. Nxc8 {[%clk 0:01:39]}  Rdxc8 {[%clk 0:02:08]} 22. Rc2 {[%clk 0:01:37]}  Kf8 {[%clk 0:01:51]} 23. Rdc1 {[%clk 0:01:32]}  Ne8 {[%clk 0:01:48]} 24. Nc5 {[%clk 0:01:32]}  Rd8 {[%clk 0:01:20]} 25. Nxb7 {[%clk 0:01:24]}  Rd7 {[%clk 0:01:20]} 26. Bc6 {[%clk 0:01:09]}  Re7 {[%clk 0:01:20]} 27. Nc5 {[%clk 0:01:09]}  Rd8 {[%clk 0:01:06]} 28. Nxa6 {[%clk 0:01:07]}  Bb6 {[%clk 0:01:04]} 29. Bxe8 {[%clk 0:00:58]}  Kxe8 {[%clk 0:01:04]} 30. Nb4 {[%clk 0:00:54]}  Rb7 {[%clk 0:01:04]} 31. Nd3 {[%clk 0:00:51]}  Ke7 {[%clk 0:01:01]} 32. b3 {[%clk 0:00:47]}  Kf6 {[%clk 0:00:57]} 33. Kg2 {[%clk 0:00:43]}  Ra8 {[%clk 0:00:57]} 34. f4 {[%clk 0:00:39]}  Be3 {[%clk 0:00:57]} 35. Rb1 {[%clk 0:00:38]}  Ra3 {[%clk 0:00:53]} 36. Kf3 {[%clk 0:00:37]}  Bb6 {[%clk 0:00:51]} 37. Ne5 {[%clk 0:00:36]}  Rba7 {[%clk 0:00:48]} 38. Nc4 {[%clk 0:00:34]}  R3a6 {[%clk 0:00:44]} 39. a4 {[%clk 0:00:30]}  Bc7 {[%clk 0:00:41]} 40. Nd2 {[%clk 0:00:28]}  Ke7 {[%clk 0:00:39]} 41. Rbc1 {[%clk 0:00:27]}  Bb8 {[%clk 0:00:36]} 42. Rc6 {[%clk 0:00:24]}  Ra5 {[%clk 0:00:32]} 43. Rc8 {[%clk 0:00:24]}  Rb7 {[%clk 0:00:32]} 44. e4 {[%clk 0:00:23]}  g5 {[%clk 0:00:29]} 45. R8c3 {[%clk 0:00:21]}  gxf4 {[%clk 0:00:29]} 46. gxf4 {[%clk 0:00:22]}  Rh5 {[%clk 0:00:29]} 47. Kg3 {[%clk 0:00:22]}  Rg5+ {[%clk 0:00:29]} 48. Kf3 {[%clk 0:00:22]}  Rh5 {[%clk 0:00:30]} 49. Nf1 {[%clk 0:00:19]}  Rh4 {[%clk 0:00:28]} 50. e5 {[%clk 0:00:19]}  Rb4 {[%clk 0:00:27]} 51. Rc4 {[%clk 0:00:13]}  Rxb3+ {[%clk 0:00:27]} 52. R1c3 {[%clk 0:00:13]}  Rb1 {[%clk 0:00:25]} 53. Kg2 {[%clk 0:00:11]}  Rg4+ {[%clk 0:00:19]} 54. Rg3 {[%clk 0:00:11]}  Rh4 {[%clk 0:00:17]} 55. a5 {[%clk 0:00:07]}  Bxe5 {[%clk 0:00:17]} 56. a6 {[%clk 0:00:07]}  Ra1 {[%clk 0:00:17]} 57. Rf3 {[%clk 0:00:05]}  Rxa6 {[%clk 0:00:17]} 58. Kg3 {[%clk 0:00:04]}  Bf6 {[%clk 0:00:17]} 59. Ne3 {[%clk 0:00:04]}  Ra8 {[%clk 0:00:15]} 60. h3 {[%clk 0:00:02]}  Rg8+ {[%clk 0:00:16]} 61. Kf2 {[%clk 0:00:03]}  Rh5 {[%clk 0:00:15]} 62. Ng4 {[%clk 0:00:03]}  Bh4+ {[%clk 0:00:14]} 63. Ke3 {[%clk 0:00:03]}  Rd5 {[%clk 0:00:15]} 64. Rc7+ {[%clk 0:00:03]}  Kf8 {[%clk 0:00:15]} 65. Nxh6 {[%clk 0:00:02]}  Rg1 {[%clk 0:00:15]} 66. Rc8+ {[%clk 0:00:03]}  Kg7 {[%clk 0:00:15]} 67. Ng4 {[%clk 0:00:02]}  Re1# {[%clk 0:00:16]} 0-1

[Event "January 2 Early 2024"]
[Site "https://www.chess.com"]
[Date "2024.01.02"]
[Round "10"]
[White "Jeet, Jain"]
[Black "Pakleza, Zbigniew"]
[Result "0-1"]
[Board "36"]
[TimeControl "180+1"]
[WhiteFideId "5073022"]
[BlackFideId "1119290"]
[WhiteElo "2583"]
[BlackElo "2818"]
[WhiteTeam "IND"]
[BlackTeam "POL"]
[WhiteClock "0:00:13"]
[BlackClock "0:00:23"]

1. Nf3 {[%clk 0:02:16]}  d5 {[%clk 0:02:58]} 2. g3 {[%clk 0:02:15]}  Nf6 {[%clk 0:02:58]} 3. Bg2 {[%clk 0:02:15]}  Bf5 {[%clk 0:02:58]} 4. d4 {[%clk 0:02:16]}  e6 {[%clk 0:02:59]} 5. O-O {[%clk 0:02:16]}  Be7 {[%clk 0:02:58]} 6. Ne5 {[%clk 0:02:16]}  O-O {[%clk 0:02:57]} 7. c3 {[%clk 0:02:15]}  c6 {[%clk 0:02:57]} 8. Nd2 {[%clk 0:02:15]}  h6 {[%clk 0:02:56]} 9. Re1 {[%clk 0:02:15]}  Bh7 {[%clk 0:02:57]} 10. e4 {[%clk 0:02:15]}  Nbd7 {[%clk 0:02:57]} 11. Nxd7 {[%clk 0:02:14]}  Qxd7 {[%clk 0:02:52]} 12. e5 {[%clk 0:02:15]}  Ne8 {[%clk 0:02:52]} 13. f4 {[%clk 0:02:15]}  c5 {[%clk 0:02:50]} 14. dxc5 {[%clk 0:02:10]}  Bxc5+ {[%clk 0:02:49]} 15. Kh1 {[%clk 0:02:11]}  Nc7 {[%clk 0:02:44]} 16. Nb3 {[%clk 0:02:10]}  Bb6 {[%clk 0:02:40]} 17. Be3 {[%clk 0:02:06]}  Bxe3 {[%clk 0:02:37]} 18. Rxe3 {[%clk 0:02:06]}  Qb5 {[%clk 0:02:15]} 19. Qd2 {[%clk 0:02:04]}  Qb6 {[%clk 0:02:13]} 20. h4 {[%clk 0:01:51]}  a5 {[%clk 0:02:08]} 21. a4 {[%clk 0:01:45]}  Qxb3 {[%clk 0:02:06]} 22. g4 {[%clk 0:01:40]}  Qc2 {[%clk 0:02:01]} 23. Qe1 {[%clk 0:01:35]}  Qxb2 {[%clk 0:01:34]} 24. h5 {[%clk 0:01:30]}  Rac8 {[%clk 0:01:22]} 25. g5 {[%clk 0:01:30]}  Bf5 {[%clk 0:01:18]} 26. Rd1 {[%clk 0:01:23]}  Na6 {[%clk 0:01:08]} 27. gxh6 {[%clk 0:01:19]}  gxh6 {[%clk 0:01:08]} 28. Qh4 {[%clk 0:01:06]}  Kh7 {[%clk 0:01:08]} 29. Qf6 {[%clk 0:01:01]}  Rg8 {[%clk 0:01:06]} 30. Bxd5 {[%clk 0:00:52]}  Rxc3 {[%clk 0:00:41]} 31. Rxc3 {[%clk 0:00:35]}  Qxc3 {[%clk 0:00:41]} 32. Bg2 {[%clk 0:00:35]}  Qg3 {[%clk 0:00:27]} 33. Rd2 {[%clk 0:00:13]}  Qe1+ {[%clk 0:00:23]} 0-1

[Event "January 2 Early 2024"]
[Site "https://www.chess.com"]
[Date "2024.01.02"]
[Round "10"]
[White "De Winter, Arthur"]
[Black "Postnikov, Daniil"]
[Result "1-0"]
[Board "38"]
[TimeControl "180+1"]
[WhiteFideId "1069020"]
[BlackFideId "4166329"]
[WhiteElo "2800"]
[BlackElo "2521"]
[WhiteTeam "NED"]
[BlackTeam "RUS"]
[WhiteClock "0:00:13"]
[BlackClock "0:00:06"]

1. e4 {[%clk 0:03:00]}  e6 {[%clk 0:03:00]} 2. d4 {[%clk 0:03:00]}  d5 {[%clk 0:02:59]} 3. Nc3 {[%clk 0:03:00]}  Nf6 {[%clk 0:02:58]} 4. Bg5 {[%clk 0:03:00]}  Be7 {[%clk 0:02:56]} 5. e5 {[%clk 0:03:00]}  Nfd7 {[%clk 0:02:56]} 6. h4 {[%clk 0:03:01]}  h6 {[%clk 0:02:55]} 7. Bxe7 {[%clk 0:02:58]}  Qxe7 {[%clk 0:02:56]} 8. f4 {[%clk 0:02:58]}  a6 {[%clk 0:02:55]} 9. Nf3 {[%clk 0:02:59]}  c5 {[%clk 0:02:53]} 10. Qd2 {[%clk 0:02:59]}  Nc6 {[%clk 0:02:53]} 11. Ne2 {[%clk 0:03:00]}  b5 {[%clk 0:02:40]} 12. c3 {[%clk 0:02:54]}  Bb7 {[%clk 0:02:37]} 13. g4 {[%clk 0:02:42]}  f6 {[%clk 0:02:12]} 14. Bh3 {[%clk 0:02:37]}  a5 {[%clk 0:02:08]} 15. h5 {[%clk 0:02:22]}  b4 {[%clk 0:02:05]} 16. Nh4 {[%clk 0:02:20]}  Nf8 {[%clk 0:02:02]} 17. Bg2 {[%clk 0:02:08]}  a4 {[%clk 0:01:54]} 18. dxc5 {[%clk 0:02:03]}  Qxc5 {[%clk 0:01:42]} 19. exf6 {[%clk 0:01:49]}  gxf6 {[%clk 0:01:43]} 20. Nd4 {[%clk 0:01:48]}  bxc3 {[%clk 0:01:23]} 21. bxc3 {[%clk 0:01:47]}  Rc8 {[%clk 0:01:23]} 22. O-O {[%clk 0:01:43]}  Rg8 {[%clk 0:01:21]} 23. Bf3 {[%clk 0:01:33]}  Nxd4 {[%clk 0:01:15]} 24. cxd4 {[%clk 0:01:29]}  Qc3 {[%clk 0:01:15]} 25. Qf2 {[%clk 0:01:26]}  Ba6 {[%clk 0:01:04]} 26. Rfe1 {[%clk 0:01:22]}  Bd3 {[%clk 0:01:04]} 27. Rad1 {[%clk 0:01:18]}  f5 {[%clk 0:00:57]} 28. Re3 {[%clk 0:01:11]}  Qxd4 {[%clk 0:00:42]} 29. Rexd3 {[%clk 0:01:06]}  Qxf4 {[%clk 0:00:42]} 30. Ng2 {[%clk 0:01:06]}  Qg5 {[%clk 0:00:40]} 31. Bxd5 {[%clk 0:01:00]}  Qxg4 {[%clk 0:00:40]} 32. Bf3 {[%clk 0:00:58]}  Qc4 {[%clk 0:00:34]} 33. Rd4 {[%clk 0:00:50]}  Qc5 {[%clk 0:00:33]} 34. Rd8+ {[%clk 0:00:49]}  Ke7 {[%clk 0:00:32]} 35. Rxc8 {[%clk 0:00:48]}  Qxc8 {[%clk 0:00:33]} 36. Qe3 {[%clk 0:00:47]}  Rg5 {[%clk 0:00:29]} 37. Rc1 {[%clk 0:00:43]}  Qb8 {[%clk 0:00:28]} 38. Qc5+ {[%clk 0:00:21]}  Qd6 {[%clk 0:00:27]} 39. Qxd6+ {[%clk 0:00:20]}  Kxd6 {[%clk 0:00:28]} 40. Kf2 {[%clk 0:00:21]}  e5 {[%clk 0:00:20]} 41. Rc6+ {[%clk 0:00:21]}  Ke7 {[%clk 0:00:17]} 42. Rxh6 {[%clk 0:00:22]}  e4 {[%clk 0:00:16]} 43. Be2 {[%clk 0:00:22]}  Ne6 {[%clk 0:00:17]} 44. Bc4 {[%clk 0:00:23]}  Nd4 {[%clk 0:00:16]} 45. Nf4 {[%clk 0:00:23]}  Rg4 {[%clk 0:00:16]} 46. Nd5+ {[%clk 0:00:23]}  Kf8 {[%clk 0:00:16]} 47. Ke3 {[%clk 0:00:16]}  Nf3 {[%clk 0:00:13]} 48. Nf4 {[%clk 0:00:15]}  Rh4 {[%clk 0:00:12]} 49. Ng6+ {[%clk 0:00:14]}  Kg7 {[%clk 0:00:13]} 50. Nxh4 {[%clk 0:00:14]}  Kxh6 {[%clk 0:00:12]} 51. Nxf5+ {[%clk 0:00:15]}  Kxh5 {[%clk 0:00:11]} 52. Kxe4 {[%clk 0:00:15]}  Nd2+ {[%clk 0:00:11]} 53. Kd3 {[%clk 0:00:16]}  Nb1 {[%clk 0:00:10]} 54. Ne3 {[%clk 0:00:16]}  Kg5 {[%clk 0:00:09]} 55. Nd1 {[%clk 0:00:16]}  Na3 {[%clk 0:00:08]} 56. Nc3 {[%clk 0:00:13]}  Kf4 {[%clk 0:00:07]} 57. Nb5 {[%clk 0:00:12]}  Ke5 {[%clk 0:00:06]} 58. Nxa3 {[%clk 0:00:13]} 1-0